fUSD/lending_fUSD_20240814
["ID","MTS","AMOUNT","RATE_DAILY","PERIOD"]
[334867960,1723619455019,-1000.0,0.00011,2]
[334867961,1723619455029,-260.31926764,0.00011,2]
[334867962,1723619455038,-12831.64362267,0.00011,2]
[334867963,1723619455049,-1050.68636838,0.00011,2]
[334867964,1723619455059,-413.15115888,0.00011,2]
[334867965,1723619455068,-200.0,0.00011,2]
[334867966,1723619455079,-835.5,0.00011,2]
[334867967,1723619455088,-2000.0,0.00011,2]
[334867968,1723619455098,-200.0,0.00011,2]
[334867969,1723619455108,-200.0,0.00011,2]
[334867970,1723619455118,-200.0,0.00011,2]
[334867971,1723619455127,-212.46296053,0.00011,2]
[334867972,1723619455137,-21937.2143259,0.00011003,2]
[334867973,1723619455147,-6862.2910929,0.00011003,2]
[334867974,1723619455156,-2846.8523932,0.00011003,2]
[334867975,1723619455166,-214.0,0.0001101,2]
[334867976,1723619455175,-842.02,0.00011014,2]
[334867977,1723619455185,-1670.68,0.00011014,2]
[334867978,1723619455194,-150.0,0.00011041,2]
[334867979,1723619455204,-1060.13,0.00011041,2]
[334867980,1723619455214,-687.68,0.00011079,2]
[334867981,1723619455224,-9272.91226616,0.00011105,2]
[334867982,1723619455233,-2342.25040251,0.00011105,2]
[334867983,1723619455243,-2841.60373024,0.00011105,2]
[334867984,1723619455253,-2112.26107616,0.00011105,2]
[334867985,1723619455263,-207.16684146,0.00011105,2]
[334867986,1723619455273,-1500.0,0.00011105,2]
[334867987,1723619455283,-166.39780491,0.00011105,2]
[334867988,1723619455292,-266.54892717,0.00011105,2]
[334867989,1723619455301,-477.03009749,0.00011105,2]
[334867990,1723619455311,-1739.89635627,0.00011105,2]
[334867991,1723619455321,-423.4163571,0.00011105,2]
[334867992,1723619455330,-255.71947903,0.00011105,2]
[334867993,1723619455340,-494.52204163,0.00011105,2]
[334867994,1723619455350,-202.94178682,0.00011105,2]
[334867995,1723619455368,-267.36463336,0.00011105,2]
[334867996,1723619455377,-236.78945143,0.00011105,2]
[334867997,1723619455386,-242.53687016,0.00011105,2]
[334867998,1723619455396,-285.25130853,0.00011105,2]
[334867999,1723619455406,-500.0,0.00011105,2]
[334868000,1723619455415,-723.4767735,0.00011105,2]
[334868001,1723619455424,-164.40811307,0.00011105,2]
[334868002,1723619455434,-1275.75177255,0.00011105,2]
[334868003,1723619455443,-1298.45974265,0.00011105,2]
[334868004,1723619455454,-309.91760772,0.00011105,2]
[334868005,1723619455463,-307.90693662,0.00011105,2]
[334868006,1723619455472,-3405.01403959,0.00011105,2]
[334868007,1723619455482,-218.94909086,0.00011105,2]
[334868008,1723619455491,-165.53859276,0.00011105,2]
[334868009,1723619455500,-164.4317177,0.00011105,2]
[334868010,1723619455510,-323.88959871,0.00011105,2]
[334868011,1723619455521,-298.67239716,0.00011105,2]
[334868012,1723619455531,-297.51588055,0.00011105,2]
[334868013,1723619455540,-328.86743048,0.00011105,2]
[334868014,1723619455549,-203.44814982,0.00011105,2]
[334868015,1723619455558,-197.53097559,0.00011105,2]
[334868016,1723619455567,-155.0,0.00011105,2]
[334868017,1723619455576,-1074.88726643,0.00011105,2]
[334868018,1723619455586,-529.01492508,0.00011105,2]
[334868019,1723619455595,-9961.61342847,0.00011105,2]
[334868020,1723619455606,-211.47034017,0.00011105,2]
[334868021,1723619455615,-517.65878543,0.00011105,2]
[334868022,1723619455625,-358.14086593,0.00011105,2]
[334868023,1723619455635,-464.50128177,0.00011105,2]
[334868024,1723619455644,-211.03413449,0.00011105,2]
[334868025,1723619455654,-155.0,0.00011105,2]
[334868026,1723619455663,-2216.59298295,0.00011105,2]
[334868027,1723619455672,-191.52383957,0.00011105,2]
[334868028,1723619455681,-1008.10357786,0.00011105,2]
[334868029,1723619455691,-1257.73185636,0.00011105,2]
[334868030,1723619455701,-500.0,0.00011105,2]
[334868031,1723619455710,-522.9745894,0.00011105,2]
[334868032,1723619455720,-200.0,0.0001111,2]
[334868033,1723619455729,-2000.0,0.0001111,2]
[334868034,1723619455739,-200.0,0.0001111,2]
[334868035,1723619455748,-200.0,0.0001111,2]
[334868036,1723619455757,-200.0,0.0001111,2]
[334868037,1723619455767,-192.76,0.00011124,2]
[334868038,1723619455776,-259.04,0.00011126,2]
[334868039,1723619455785,-449.85,0.0001113,2]
[334868040,1723619455794,-24375.88721711,0.00011186,2]
[334868041,1723619455804,-35726.99886332,0.00011186,2]
[334868042,1723619455813,-2000.0,0.00011221,2]
[334868043,1723619455823,-200.0,0.00011221,2]
[334868044,1723619455832,-200.0,0.00011221,2]
[334868045,1723619455841,-150.34,0.00011288,2]
[334868046,1723619455850,-150.0,0.00011288,2]
[334868047,1723619455859,-150.0,0.00011288,2]
[334868048,1723619455868,-150.0,0.00011288,2]
[334868049,1723619455877,-150.0,0.00011288,2]
[334868050,1723619455886,-150.0,0.00011288,2]
[334868051,1723619455898,-2000.0,0.00011333,2]
[334868052,1723619455907,-200.0,0.00011333,2]
[334868053,1723619455916,-200.0,0.00011333,2]
[334868054,1723619455925,-388.12409546,0.00011335,2]
[334868055,1723619455934,-214.0,0.0001134,2]
[334868056,1723619455944,-2000.0,0.00011447,2]
[334868057,1723619455953,-200.0,0.00011447,2]
[334868058,1723619455962,-200.0,0.00011447,2]
[334868059,1723619455972,-420.40735223,0.00011459,2]
[334868060,1723619455981,-356.58,0.00011507,2]
[334868061,1723619455990,-356.58,0.00011507,2]
[334868062,1723619456000,-356.58,0.00011507,2]
[334868063,1723619456012,-356.58,0.00011507,2]
[334868064,1723619456021,-356.58,0.00011507,2]
[334868065,1723619456030,-499.81,0.00011507,2]
[334868066,1723619456039,-841.3,0.00011534,2]
[334868067,1723619456048,-835.5,0.00011534,2]
[334868068,1723619456059,-839.49,0.00011534,2]
[334868069,1723619456068,-214.0,0.0001168,2]
[334868070,1723619456077,-255.0,0.00011836,2]
[334868071,1723619456248,-1406.37135649,0.00011896,2]
[334868072,1723619456258,-305.89011013,0.00011937,2]
[334868073,1723619456267,-181.84064908,0.00011976,2]
[334868074,1723619456277,-600.0,0.00012,2]
[334868075,1723619456287,-214.0,0.0001201,2]
[334868076,1723619456296,-421.09,0.00012055,2]
[334868077,1723619456305,-1679.21,0.00012055,2]
[334868078,1723619456314,-150.0,0.0001211,2]
[334868079,1723619456323,-150.0,0.0001211,2]
[334868080,1723619456333,-150.0,0.0001211,2]
[334868081,1723619456342,-531.07,0.0001211,2]
[334868082,1723619456352,-150.0,0.0001211,2]
[334868083,1723619456361,-150.0,0.0001211,2]
[334868084,1723619456370,-300.0,0.0001211,2]
[334868085,1723619456380,-150.0,0.0001211,2]
[334868086,1723619456389,-329.77,0.0001211,2]
[334868087,1723619456398,-150.0,0.0001211,2]
[334868088,1723619456408,-150.0,0.0001211,2]
[334868089,1723619456417,-150.0,0.0001211,2]
[334868090,1723619456426,-150.0,0.0001211,2]
[334868091,1723619456435,-150.0,0.0001211,2]
[334868092,1723619456444,-150.0,0.0001211,2]
[334868093,1723619456453,-150.0,0.0001211,2]
[334868094,1723619456462,-150.35,0.0001211,2]
[334868095,1723619456471,-824.89,0.0001211,2]
[334868096,1723619456480,-531.07,0.0001211,2]
[334868097,1723619456490,-531.07,0.0001211,2]
[334868098,1723619456499,-1061.44,0.0001211,2]
[334868099,1723619456507,-356.58,0.0001211,2]
[334868100,1723619456516,-5000.0,0.00012121,2]
[334868101,1723619456525,-1275.39270371,0.00012222,2]
[334868102,1723619456535,-687.68,0.0001231,2]
[334868103,1723619456544,-214.0,0.0001235,2]
[334868104,1723619456553,-192.76,0.00012359,2]
[334868105,1723619456562,-259.04,0.00012363,2]
[334868106,1723619456571,-449.85,0.00012366,2]
[334868107,1723619456580,-171.61026492,0.00012373,2]
[334868108,1723619456589,-225.31402322,0.00012373,2]
[334868109,1723619456598,-982.57436055,0.00012373,2]
[334868110,1723619456608,-186.6480781,0.00012373,2]
[334868111,1723619456617,-352948.33219218,0.0001246,2]
[334868112,1723619456630,-472.40824673,0.0001246,2]
[334868113,1723619457563,-1197.57494504,0.0001246,2]
[334868114,1723619457575,-1839.97617697,0.0001246,2]
[334868115,1723619457731,-6099.87879838,0.0001246,2]
[334868116,1723619457742,-8798.02859357,0.0001246,2]
[334868117,1723619457753,-485.305,0.0001246,2]
[334868118,1723619458441,-769.62,0.00010959,2]
[334868119,1723619458450,-531.07,0.000113,2]
[334868120,1723619458459,-1169.57994605,0.0001246,2]
[334868121,1723619458471,-8499.85506002,0.0001246,2]
[334868122,1723619458481,-16288.40638518,0.0001246,2]
[334868123,1723619458492,-6297.53466884,0.0001246,2]
[334868124,1723619458503,-432.05266282,0.0001246,2]
[334868125,1723619458514,-5948.71108862,0.0001246,2]
[334868126,1723619458526,-612.34305062,0.0001246,2]
[334868127,1723619458536,-565.134902,0.0001246,2]
[334868128,1723619458546,-949.65,0.0001246,2]
[334868129,1723619458557,-2066.50353201,0.0001246,2]
[334868132,1723619941927,150.0,9.684e-05,2]
[334868133,1723619941948,150.0,9.684e-05,2]
[334868134,1723619941971,150.0,9.684e-05,2]
[334868135,1723619941992,150.0,9.684e-05,2]
[334868136,1723619942013,150.0,9.684e-05,2]
[334868137,1723619942034,3.75,9.684e-05,2]
[334868139,1723619983334,150.0,9.684e-05,2]
[334868140,1723619983357,150.0,9.684e-05,2]
[334868141,1723619983380,64.05825295,9.684e-05,2]
[334868142,1723619984138,85.94174705,9.684e-05,2]
[334868143,1723619984162,150.0,9.684e-05,2]
[334868144,1723619984185,150.0,9.684e-05,2]
[334868145,1723619984211,150.0,9.684e-05,2]
[334868146,1723619984234,150.0,9.684e-05,2]
[334868147,1723619984258,7.33726999,9.684e-05,2]
[334868148,1723619984986,142.66273001,9.684e-05,2]
[334868149,1723619985008,150.0,9.684e-05,2]
[334868150,1723619985031,12.33726999,9.684e-05,2]
[334868151,1723619986601,150.0,9.684e-05,2]
[334868152,1723619986622,5.0,9.684e-05,2]
[334868153,1723619987023,150.0,9.684e-05,2]
[334868154,1723619987046,150.0,9.684e-05,2]
[334868155,1723619987067,460.45102022,9.684e-05,2]
[334868156,1723619998154,485.79099003,9.684e-05,2]
[334868157,1723620023758,227.80268088,9.684e-05,2]
[334868158,1723620031323,150.0,9.684e-05,2]
[334868159,1723620031344,150.0,9.684e-05,2]
[334868160,1723620031366,112.04342654,9.684e-05,2]
[334868161,1723620031406,37.95657346,9.684e-05,2]
[334868162,1723620031426,150.0,9.684e-05,2]
[334868163,1723620031446,150.0,9.684e-05,2]
[334868164,1723620031467,150.0,9.684e-05,2]
[334868165,1723620031487,150.0,9.684e-05,2]
[334868166,1723620031507,150.0,9.684e-05,2]
[334868167,1723620031529,150.0,9.684e-05,2]
[334868168,1723620031551,202.3127641,9.684e-05,2]
[334868169,1723620031573,83.82771201,9.684e-05,2]
[334868170,1723620046379,20199.67733482,9.684e-05,2]
[334868171,1723620117158,186.31771937,9.684e-05,2]
[334868172,1723620129742,227.80268088,9.684e-05,2]
[334868173,1723620130321,411.42168287,9.684e-05,2]
[334868174,1723620130386,945.26479659,9.684e-05,2]
[334868175,1723620355539,250.0,6.94e-05,2]
[334868176,1723620355564,2244.95487903,6.94e-05,2]
[334868177,1723620383387,150.0,6.94e-05,2]
[334868178,1723620383412,104.53339333,6.94e-05,2]
[334868179,1723620390790,205.57849294,6.94e-05,2]
[334868180,1723620390813,22.22418794,6.94e-05,2]
[334868181,1723620403267,150.0,8.412e-05,2]
[334868182,1723620403291,823.288779,8.412e-05,2]
[334868183,1723620414692,150.0,6.94e-05,2]
[334868184,1723620414715,56.15596789,6.94e-05,2]
[334868185,1723620420855,227.80268088,6.94e-05,2]
[334868186,1723620425691,749.41,8.904e-05,2]
[334868187,1723620467001,150.0,8.615e-05,2]
[334868188,1723620467024,47.01,8.615e-05,2]
[334868196,1723620535795,227.80268088,8.615e-05,2]
[334868200,1723620553460,530.45,9.584e-05,2]
[334868205,1723620612811,-550.0,0.0001,2]
[334868208,1723620632004,-637.92597082,0.00010342,2]
[334868209,1723620632014,-140.70787613,0.00010442,2]
[334868215,1723620632170,-808.06786737,0.00010442,2]
[334868216,1723620632179,-161.04,0.00010487,2]
[334868217,1723620632189,-200.0,0.00010525,2]
[334868218,1723620632199,-410.1,0.00010557,2]
[334868219,1723620632209,-4229.39684463,0.00010894,2]
[334868220,1723620632221,-3640.49315537,0.00010894,2]
[334868221,1723620632230,-1020.31416304,0.000109,2]
[334868222,1723620632240,-167.7305538,0.00010903,2]
[334868223,1723620632249,-655.0495737,0.00010903,2]
[334868224,1723620632259,-407.50954583,0.00010959,2]
[334868225,1723620632275,-1520.13045417,0.00010959,2]
[334868226,1723620632285,-371.45957192,0.0001099,2]
[334868227,1723620632297,-245.28545685,0.0001099,2]
[334868228,1723620632306,-6441.05993492,0.00010999,2]
[334868229,1723620632318,-941.53006508,0.00010999,2]
[334868230,1723620632328,-814.94,0.00010999,2]
[334868231,1723620632337,-150.0,0.00010999,2]
[334868232,1723620632347,-195.36205429,0.00010999,2]
[334868233,1723620632357,-1480.0399411,0.00011,2]
[334868235,1723620638388,-250.0,0.00010471,2]
[334868236,1723620638400,-227.294892,0.00010903,2]
[334868237,1723620638415,-314.1420077,0.00010903,2]
[334868238,1723620638428,-335.73993642,0.00010997,2]
[334868239,1723620638441,-246883.09193708,0.00011,2]
[334868240,1723620638452,-12831.64362267,0.00011,2]
[334868241,1723620638464,-1705758.16647429,0.00011,2]
[334868302,1723620639191,-0.00943935,0.00011,2]
[334868304,1723620639205,-636.74999999,0.00011,2]
[334868340,1723620640030,-64076.82359592,0.00011,2]
[334868341,1723620640100,-1352.59422969,0.00011,2]
[334868342,1723620640113,-1529.43690522,0.00011,2]
[334868343,1723620640126,-483.013755,0.00011,2]
[334868344,1723620640174,-327.32339395,0.00011,2]
[334868345,1723620640187,-645.18180464,0.00011,2]
[334868346,1723620640200,-205365.96272065,0.00011,2]
[334868347,1723620640214,-2402.52629744,0.00011,2]
[334868348,1723620640228,-919.46285155,0.00011,2]
[334868349,1723620640257,-1916.60939772,0.00011,2]
[334868350,1723620640270,-813.78799327,0.00011,2]
[334868351,1723620640284,-1015.75187423,0.00011,2]
[334868352,1723620640298,-1577493.97372919,0.00011,2]
[334868353,1723620640309,-500.0,0.00011003,2]
[334868354,1723620640321,-172.69,0.00011019,2]
[334868355,1723620640334,-529.89907547,0.00011105,2]
[334868356,1723620640346,-477.03009749,0.00011105,2]
[334868357,1723620640358,-203.26956481,0.00011105,2]
[334868358,1723620640370,-1406.37135649,0.00011105,2]
[334868359,1723620640381,-522.9745894,0.00011105,2]
[334868360,1723620640393,-1257.73185636,0.00011105,2]
[334868362,1723620640404,-304.00880554,0.00011105,2]
[334868364,1723620640419,-1000.0,0.00011158,2]
[334868366,1723620640433,-749.41,0.00011168,2]
[334868368,1723620640445,-171.05,0.00011417,2]
[334868370,1723620640457,-698.97889,0.000115,2]
[334868372,1723620640468,-445.26,0.00011589,2]
[334868375,1723620640480,-420.45,0.00011589,2]
[334868377,1723620640491,-842.18,0.000116,2]
[334868379,1723620640503,-421.09,0.000116,2]
[334868381,1723620640514,-3725.01,0.000116,2]
[334868383,1723620640526,-227.80268088,0.00011617,2]
[334868386,1723620640538,-150.99,0.00011669,2]
[334868388,1723620640549,-150.47,0.00011671,2]
[334868389,1723620640561,-300.46,0.00011671,2]
[334868390,1723620640573,-154.46,0.00011671,2]
[334868391,1723620640585,-150.0,0.00011671,2]
[334868392,1723620640596,-1061.94,0.00011671,2]
[334868393,1723620640608,-300.0,0.00011671,2]
[334868394,1723620640620,-300.0,0.00011671,2]
[334868395,1723620640631,-635.68,0.00011671,2]
[334868396,1723620640643,-3189.23,0.00011755,2]
[334868397,1723620640655,-499.99,0.00011824,2]
[334868398,1723620640667,-219.28,0.00011881,2]
[334868399,1723620640680,-1020.31416296,0.000119,2]
[334868400,1723620640693,-305.89011013,0.00011937,2]
[334868402,1723620640704,-600.0,0.00012,2]
[334868404,1723620640716,-519.26,0.00012055,2]
[334868406,1723620640726,-150.0,0.00012055,2]
[334868408,1723620640738,-420.40735223,0.00012062,2]
[334868410,1723620640749,-388.12409546,0.00012145,2]
[334868412,1723620640761,-246.39668866,0.00012232,2]
[334868414,1723620640773,-1462.0,0.000123,2]
[334868417,1723620640785,-987.9492,0.0001236,2]
[334868419,1723620640797,-7930.8191812,0.00012456,2]
[334868421,1723620640809,-22661.2588794,0.00012456,2]
[334868423,1723620640820,-3290.0726981,0.00012456,2]
[334868425,1723620640832,-150.01,0.00012459,2]
[334868427,1723620640842,-3193.44896071,0.00012459,2]
[334868429,1723620640854,-283256.20538906,0.0001246,2]
[334868432,1723620640866,-171.71660257,0.0001246,2]
[334868434,1723620640876,-299.98698689,0.0001246,2]
[334868436,1723620640887,-449.58622418,0.0001246,2]
[334868438,1723620640899,-163.01072053,0.0001246,2]
[334868440,1723620640910,-170.50678652,0.0001246,2]
[334868443,1723620640921,-2523.81024,0.0001246,2]
[334868445,1723620640932,-1000.0,0.00012552,2]
[334868446,1723620640943,-214.0,0.0001268,2]
[334868447,1723620640954,-301.1,0.00012685,2]
[334868448,1723620640966,-6779.8597245,0.00012875,2]
[334868449,1723620640978,-500.84920261,0.00012876,2]
[334868450,1723620640989,-1020.31416296,0.000129,2]
[334868451,1723620640999,-214.0,0.0001302,2]
[334868452,1723620641010,-797.85130085,0.0001319,2]
[334868453,1723620641021,-214.0,0.0001336,2]
[334868454,1723620641032,-219.28,0.00013366,2]
[334868455,1723620641043,-1542.0,0.00013378,2]
[334868456,1723620641055,-1924.0,0.00013378,2]
[334868457,1723620641066,-315.235,0.00013378,2]
[334868458,1723620641080,-749.41,0.00013432,2]
[334868459,1723620641100,-9271.2291564,0.00013489,2]
[334868460,1723620641111,-1270.61,0.00013507,2]
[334868461,1723620641123,-531.07,0.00013507,2]
[334868462,1723620641134,-5000.0,0.0001351,2]
[334868463,1723620641144,-2523.81025,0.0001353,2]
[334868464,1723620641155,-192.76,0.00013595,2]
[334868465,1723620641165,-632.6532,0.00013598,2]
[334868466,1723620641177,-214.0,0.0001369,2]
[334868467,1723620641188,-2341.83323937,0.00013698,2]
[334868468,1723620641198,-2112.26107616,0.00013698,2]
[334868469,1723620641210,-154.515368,0.00013698,2]
[334868470,1723620641221,-211.389287,0.00013698,2]
[334868471,1723620641232,-154.515367,0.00013698,2]
[334868472,1723620641244,-179.280189,0.00013698,2]
[334868473,1723620641255,-161.821685,0.00013698,2]
[334868474,1723620641267,-179.280187,0.00013698,2]
[334868475,1723620641596,-500.0,0.00013698,2]
[334868476,1723620641625,-500.0,0.00013698,2]
[334868477,1723620641638,-500.0,0.00013698,2]
[334868478,1723620641648,-500.0,0.00013698,2]
[334868479,1723620641658,-557.67598636,0.00013698,2]
[334868480,1723620641668,-500.0,0.00013698,2]
[334868481,1723620641678,-500.0,0.00013698,2]
[334868482,1723620641688,-500.0,0.00013698,2]
[334868483,1723620641698,-500.0,0.00013698,2]
[334868484,1723620641708,-500.0,0.00013698,2]
[334868485,1723620641717,-500.0,0.00013698,2]
[334868486,1723620641726,-500.0,0.00013698,2]
[334868487,1723620641736,-500.0,0.00013698,2]
[334868488,1723620641745,-500.0,0.00013698,2]
[334868489,1723620641755,-500.0,0.00013698,2]
[334868490,1723620641764,-500.0,0.00013698,2]
[334868491,1723620641774,-599.25271778,0.00013698,2]
[334868492,1723620641783,-500.0,0.00013698,2]
[334868493,1723620641792,-560.85,0.00013698,2]
[334868494,1723620641802,-500.0,0.00013698,2]
[334868495,1723620641811,-500.0,0.00013698,2]
[334868496,1723620641820,-500.0,0.00013698,2]
[334868497,1723620641833,-248.77050695,0.00013698,2]
[334868498,1723620641848,-500.0,0.00013698,2]
[334868499,1723620641858,-500.0,0.00013698,2]
[334868500,1723620641867,-500.0,0.00013698,2]
[334868501,1723620641877,-500.0,0.00013698,2]
[334868502,1723620641886,-500.0,0.00013698,2]
[334868503,1723620641895,-500.0,0.00013698,2]
[334868504,1723620641905,-500.0,0.00013698,2]
[334868505,1723620641914,-500.0,0.00013698,2]
[334868506,1723620641923,-500.0,0.00013698,2]
[334868507,1723620641933,-500.0,0.00013698,2]
[334868508,1723620641942,-500.0,0.00013698,2]
[334868509,1723620641951,-500.0,0.00013698,2]
[334868510,1723620641960,-510.54,0.00013698,2]
[334868511,1723620641969,-500.0,0.00013698,2]
[334868512,1723620641979,-500.0,0.00013698,2]
[334868513,1723620641989,-560.91,0.00013698,2]
[334868514,1723620641998,-510.65,0.00013698,2]
[334868515,1723620642008,-500.0,0.00013698,2]
[334868516,1723620642017,-500.0,0.00013698,2]
[334868517,1723620642026,-165.86814055,0.00013698,2]
[334868518,1723620642036,-500.0,0.00013698,2]
[334868519,1723620642046,-1141.96,0.00013698,2]
[334868520,1723620642055,-500.0,0.00013698,2]
[334868521,1723620642064,-500.0,0.00013698,2]
[334868522,1723620642074,-500.0,0.00013698,2]
[334868523,1723620642083,-500.0,0.00013698,2]
[334868524,1723620642092,-500.0,0.00013698,2]
[334868525,1723620642102,-513.16,0.00013698,2]
[334868526,1723620642112,-500.0,0.00013698,2]
[334868527,1723620642121,-3147.98,0.00013698,2]
[334868528,1723620642130,-500.0,0.00013698,2]
[334868529,1723620642140,-500.0,0.00013698,2]
[334868530,1723620642149,-500.0,0.00013698,2]
[334868531,1723620642159,-500.0,0.00013698,2]
[334868532,1723620642169,-500.0,0.00013698,2]
[334868533,1723620642179,-500.0,0.00013698,2]
[334868534,1723620642188,-500.0,0.00013698,2]
[334868535,1723620642198,-500.0,0.00013698,2]
[334868536,1723620642207,-500.0,0.00013698,2]
[334868537,1723620642216,-500.0,0.00013698,2]
[334868538,1723620642225,-500.0,0.00013698,2]
[334868539,1723620642235,-500.0,0.00013698,2]
[334868540,1723620642244,-500.0,0.00013698,2]
[334868541,1723620642254,-500.24361234,0.00013698,2]
[334868542,1723620642263,-500.0,0.00013698,2]
[334868543,1723620642272,-500.0,0.00013698,2]
[334868544,1723620642281,-813.31,0.00013698,2]
[334868545,1723620642291,-500.86657323,0.00013698,2]
[334868546,1723620642300,-500.0,0.00013698,2]
[334868547,1723620642309,-650.43,0.00013698,2]
[334868548,1723620642318,-500.0,0.00013698,2]
[334868549,1723620642329,-352.76930208,0.00013698,2]
[334868550,1723620642338,-525.21,0.00013698,2]
[334868551,1723620642347,-502.24733527,0.00013698,2]
[334868552,1723620642355,-500.0,0.00013698,2]
[334868553,1723620642364,-500.8910878,0.00013698,2]
[334868554,1723620642373,-500.0,0.00013698,2]
[334868555,1723620642383,-500.0,0.00013698,2]
[334868556,1723620642392,-500.0,0.00013698,2]
[334868557,1723620642401,-500.0,0.00013698,2]
[334868558,1723620642411,-500.0,0.00013698,2]
[334868559,1723620642422,-500.0,0.00013698,2]
[334868560,1723620642431,-500.0,0.00013698,2]
[334868561,1723620642439,-500.0,0.00013698,2]
[334868562,1723620642448,-500.0,0.00013698,2]
[334868563,1723620642458,-500.0,0.00013698,2]
[334868564,1723620642466,-501.46517872,0.00013698,2]
[334868565,1723620642476,-597.92,0.00013698,2]
[334868566,1723620642486,-500.88172177,0.00013698,2]
[334868567,1723620642495,-500.0,0.00013698,2]
[334868568,1723620642504,-500.0,0.00013698,2]
[334868569,1723620642513,-500.0,0.00013698,2]
[334868570,1723620642522,-500.0,0.00013698,2]
[334868571,1723620642531,-500.0,0.00013698,2]
[334868572,1723620642540,-500.0,0.00013698,2]
[334868573,1723620642549,-500.0,0.00013698,2]
[334868574,1723620642558,-500.0,0.00013698,2]
[334868575,1723620642568,-802.41,0.00013698,2]
[334868576,1723620642578,-500.0,0.00013698,2]
[334868577,1723620642587,-500.0,0.00013698,2]
[334868578,1723620642596,-500.0,0.00013698,2]
[334868579,1723620642605,-500.0,0.00013698,2]
[334868580,1723620642615,-506.88,0.00013698,2]
[334868581,1723620642624,-500.0,0.00013698,2]
[334868582,1723620642633,-921.35,0.00013698,2]
[334868583,1723620642642,-500.0,0.00013698,2]
[334868584,1723620642652,-500.0,0.00013698,2]
[334868585,1723620642661,-500.0,0.00013698,2]
[334868586,1723620642670,-500.0,0.00013698,2]
[334868587,1723620642679,-801.76,0.00013698,2]
[334868588,1723620642688,-500.0,0.00013698,2]
[334868589,1723620642697,-500.0,0.00013698,2]
[334868590,1723620642707,-272.51841394,0.00013698,2]
[334868591,1723620642716,-500.0,0.00013698,2]
[334868592,1723620642725,-500.0,0.00013698,2]
[334868593,1723620642735,-512.5,0.00013698,2]
[334868594,1723620642744,-503.92,0.00013698,2]
[334868595,1723620642753,-511.42,0.00013698,2]
[334868596,1723620642762,-890.99,0.00013698,2]
[334868597,1723620642771,-641.13,0.00013698,2]
[334868598,1723620642780,-500.0,0.00013698,2]
[334868599,1723620642790,-500.0,0.00013698,2]
[334868600,1723620642799,-727.93,0.00013698,2]
[334868601,1723620642808,-662.34,0.00013698,2]
[334868602,1723620642817,-500.0,0.00013698,2]
[334868603,1723620642827,-500.0,0.00013698,2]
[334868604,1723620642836,-500.0,0.00013698,2]
[334868605,1723620642845,-500.0,0.00013698,2]
[334868606,1723620642854,-500.0,0.00013698,2]
[334868607,1723620642863,-500.0,0.00013698,2]
[334868608,1723620642872,-500.0,0.00013698,2]
[334868609,1723620642881,-500.0,0.00013698,2]
[334868610,1723620642890,-500.0,0.00013698,2]
[334868611,1723620642899,-694.43,0.00013698,2]
[334868612,1723620642908,-500.0,0.00013698,2]
[334868614,1723620642918,-500.0,0.00013698,2]
[334868616,1723620642927,-500.0,0.00013698,2]
[334868617,1723620642936,-570.68,0.00013698,2]
[334868618,1723620642945,-500.0,0.00013698,2]
[334868619,1723620642954,-500.0,0.00013698,2]
[334868620,1723620642963,-500.0,0.00013698,2]
[334868621,1723620642972,-500.0,0.00013698,2]